bitfinex/quotes_ETHUSD_20251118
["timestamp","ask_amount","ask_price","bid_price","bid_amount"]
[1763476759546,0.308,3098.5,3096.8,0.773904]
[1763476759753,0.308,3098.5,3097.2,4.54121935]
[1763476759949,0.308,3098.5,3096.9,0.3684]
[1763476760245,0.308,3098.5,3097.0,0.405504]
[1763476760445,0.308,3098.5,3097.2,1.31249664]
[1763476760690,0.308,3098.5,3097.3,0.8105929]
[1763476761046,0.308,3098.5,3096.7,0.8224929]
[1763476761286,0.4946,3098.4,3096.7,0.8224929]
[1763476761442,0.4946,3098.4,3095.9,0.4874]
[1763476761643,0.4946,3098.4,3095.9,0.119]
[1763476761845,0.405504,3098.3,3095.2,0.119]
[1763476762046,1.31249664,3098.0,3095.2,0.119]
[1763476762305,1.31249664,3097.3,3093.4,13.25881026]
[1763476762504,1.31249664,3097.3,3093.4,10.39452131]
[1763476762505,0.405504,3097.1,3093.4,10.39452131]
[1763476762645,0.8036,3097.2,3094.0,6.79343236]
[1763476762845,0.4946,3097.1,3094.6,6.79343236]
[1763476763096,0.309,3097.2,3095.3,1.31249664]
[1763476763388,0.309,3097.2,3095.2,1.31249664]
[1763476763630,0.309,3097.2,3095.3,0.4874]
[1763476763804,0.309,3097.2,3095.6,0.405504]
[1763476764103,0.309,3097.2,3095.9,1.31249664]
[1763476764261,0.309,3097.2,3096.1,0.405504]
[1763476764445,0.6802,3099.6,3097.0,6.79343236]
[1763476764644,0.6802,3099.6,3097.1,0.90699264]
[1763476764916,0.1856,3099.6,3097.1,0.90699264]
[1763476765100,0.4946,3098.8,3096.0,0.8105929]
[1763476765384,0.405504,3098.7,3095.3,3.34965806]
[1763476765550,0.405504,3098.5,3095.3,3.34965806]
[1763476765883,0.4946,3098.6,3094.8,6.79343236]
[1763476765884,0.90699264,3098.2,3095.2,0.119]
[1763476766061,0.309,3098.4,3095.4,0.3684]
[1763476766266,0.4946,3098.3,3095.4,0.3684]
[1763476766469,0.4946,3098.3,3095.5,0.405504]
[1763476766668,0.4946,3098.3,3095.4,0.3684]
[1763476766869,0.4946,3098.3,3095.5,0.405504]
[1763476767077,0.4946,3098.3,3095.7,0.405504]
[1763476767386,0.4946,3098.3,3095.0,0.3684]
[1763476767548,0.4946,3098.3,3095.3,0.3684]
[1763476767743,1.358,3098.2,3095.5,0.405504]
[1763476767982,0.4946,3098.1,3095.7,0.405504]
[1763476768287,0.4946,3098.1,3095.6,0.3684]
[1763476768498,0.309,3098.0,3096.3,0.90699264]
[1763476768700,0.309,3098.0,3095.6,1.27539264]
[1763476768992,0.309,3098.0,3093.8,0.82583488]
[1763476768993,0.405504,3097.8,3094.3,0.3684]
[1763476769281,0.4946,3097.9,3094.8,1.27539264]
[1763476769606,0.4946,3097.8,3095.0,0.405504]
[1763476769885,0.4946,3097.8,3095.2,0.90699264]
[1763476770275,0.4946,3097.8,3095.3,0.119]
[1763476770450,0.405504,3097.7,3094.9,1.84420983]
[1763476770653,0.405504,3097.7,3094.3,6.79343236]
[1763476770976,0.405504,3097.7,3095.1,0.001]
[1763476770977,0.405504,3097.5,3095.1,0.001]
[1763476771214,0.1995,3095.2,3095.1,0.001]
[1763476771411,0.1995,3095.2,3092.4,3.23371642]
[1763476771412,0.405504,3095.1,3092.1,0.3694]
[1763476771628,0.405504,3095.1,3091.4,3.35297039]
[1763476771629,0.405504,3094.8,3091.4,3.35297039]
[1763476771798,0.405504,3094.8,3091.5,0.90699264]
[1763476772127,0.405504,3094.6,3091.5,1.27639264]
[1763476772429,1.31249664,3094.2,3090.7,3.23551117]
[1763476772646,1.31249664,3093.5,3090.8,0.32355112]
[1763476772815,1.31249664,3093.5,3089.8,6.47291086]
[1763476773123,0.405504,3093.3,3089.9,0.3694]
[1763476773437,0.405504,3093.1,3089.9,0.3694]
[1763476773648,0.405504,3092.9,3089.9,0.3694]
[1763476773806,0.405504,3092.9,3089.4,0.119]
[1763476774128,0.405504,3092.7,3089.5,0.3694]
[1763476774330,1.358,3092.6,3089.6,1.35750923]
[1763476774636,6.79343236,3092.0,3089.6,0.69620553]
[1763476774830,1.31249664,3091.9,3089.7,0.0323656]
[1763476775130,2.00659664,3091.9,3088.3,10.08337894]
[1763476775301,1.8526,3091.8,3088.5,0.82583488]
[1763476775499,1.31249664,3091.7,3088.6,2.35558345]
[1763476775701,0.900104,3091.7,3088.2,7.61926724]
[1763476775901,0.405504,3091.5,3088.3,1.03412263]
[1763476776213,1.31249664,3090.6,3087.6,0.82583488]
[1763476776414,0.405504,3090.4,3087.7,0.03238656]
[1763476776631,0.405504,3089.2,3086.9,0.82583488]
[1763476776791,0.405504,3089.2,3086.9,0.19395925]
[1763476776792,0.405504,3089.0,3086.9,0.19395925]
[1763476776994,0.405504,3089.0,3086.1,0.82583488]
[1763476777234,0.405504,3088.6,3085.5,0.82583488]
[1763476777444,1.31249664,3088.6,3085.7,0.66723808]
[1763476777736,0.405504,3088.4,3085.4,0.3694]
[1763476777894,1.849,3088.3,3085.7,0.82583488]
[1763476778091,0.309,3088.2,3086.1,0.82583488]
[1763476778399,0.309,3088.2,3086.5,0.82583488]
[1763476778596,0.49,3089.6,3086.9,0.405504]
[1763476778819,1.359,3089.5,3087.0,1.17187712]
[1763476779029,1.359,3089.5,3087.1,0.66721019]
[1763476779352,1.359,3089.5,3087.0,0.80247712]
[1763476779353,0.405504,3089.1,3087.0,0.80247712]
[1763476779539,0.405504,3089.1,3086.2,0.1182]
[1763476779717,0.405504,3088.9,3086.2,0.1182]
[1763476780119,0.49,3088.8,3086.2,3.35841354]
[1763476780341,0.49,3088.8,3086.2,3.3584307]
[1763476780659,1.05,3088.9,3086.4,0.405504]
[1763476780829,0.309,3088.7,3086.6,0.405504]
[1763476781029,0.309,3088.6,3087.6,1.31249664]
[1763476781229,0.309,3088.6,3087.7,0.405504]
[1763476781443,1.05,3089.6,3088.5,0.1321]
[1763476781646,1.05,3089.6,3087.8,1.03044983]
[1763476781647,1.05,3089.6,3087.8,0.3694]
[1763476781849,1.05,3089.6,3087.1,0.82583488]
[1763476781850,0.49,3089.5,3087.2,1.31249664]
[1763476782048,1.05,3090.2,3087.5,0.90699264]
[1763476782247,1.05,3090.2,3087.3,0.8160393]
[1763476782553,0.799,3090.1,3087.3,0.8160393]
[1763476782757,1.70599264,3090.1,3087.3,0.8160393]
[1763476782929,0.49,3090.0,3087.0,6.47878198]
[1763476783128,0.405504,3089.9,3087.4,0.3694]
[1763476783340,0.405504,3089.9,3086.8,3.23960088]
[1763476783341,0.405504,3089.7,3086.8,3.23960088]
[1763476783558,0.405504,3089.7,3086.6,0.3694]
[1763476783732,0.405504,3089.4,3086.3,0.33584307]
[1763476784059,0.405504,3089.4,3086.2,3.3584218]
[1763476784260,0.405504,3089.2,3086.3,0.3694]
[1763476784461,0.405504,3089.0,3086.2,0.1182]
[1763476784855,0.49,3088.9,3086.3,0.90699264]
[1763476785060,0.49,3088.9,3086.2,3.72780465]
[1763476785231,0.49,3088.9,3086.3,1.27977311]
[1763476785729,0.405504,3088.8,3086.3,0.37278047]
[1763476785926,0.405504,3088.8,3084.3,1.11375759]
[1763476785927,1.051,3088.7,3086.2,0.1182]
[1763476786153,0.799,3088.6,3086.3,0.3694]
[1763476786534,0.49,3088.5,3086.3,0.3694]
[1763476786734,0.49,3088.5,3086.2,0.1182]
[1763476787155,0.405504,3088.4,3085.2,0.3694]
[1763476787333,0.49,3088.5,3085.2,0.3694]
[1763476787532,2.0392,3088.4,3085.7,0.90699264]
[1763476787767,0.309,3088.3,3085.7,0.90699264]
[1763476787971,0.309,3088.3,3085.8,0.3694]
[1763476787972,0.49,3088.3,3085.8,0.3694]
[1763476788281,0.1892,3089.2,3085.9,0.405504]
[1763476788432,1.36,3089.1,3085.9,0.405504]
[1763476788766,0.405504,3088.9,3086.0,0.3694]
[1763476788972,0.309,3088.8,3086.2,0.90699264]
[1763476789130,0.309,3088.8,3086.5,1.31249664]
[1763476789334,0.309,3088.8,3086.3,1.1755465]
[1763476789335,0.309,3088.8,3086.7,0.405504]
[1763476789636,0.309,3088.8,3086.7,7.19893636]
[1763476789831,0.309,3088.8,3086.9,0.405504]
[1763476790168,0.309,3088.8,3087.0,0.81610984]
[1763476790472,0.799,3088.8,3087.0,0.81610984]
[1763476790658,0.799,3088.8,3086.4,0.001]
[1763476790838,0.49,3088.7,3086.5,0.90699264]
[1763476791165,0.49,3088.7,3086.4,0.001]
[1763476791871,0.405504,3088.6,3086.4,0.001]
[1763476792273,0.309,3088.8,3086.4,0.001]
[1763476792274,0.405504,3088.4,3086.4,0.001]
[1763476792569,0.49,3088.5,3086.4,0.001]
[1763476792570,1.31249664,3088.1,3086.4,0.001]
[1763476792790,0.49,3088.4,3086.4,0.001]
[1763476793065,1.36,3088.0,3086.4,0.001]
[1763476793238,0.309,3087.9,3086.4,0.001]
[1763476793446,0.49,3089.1,3086.4,0.3704]
[1763476793447,1.051,3088.6,3086.4,0.3704]
[1763476793669,0.309,3087.8,3086.4,0.001]
[1763476794090,0.309,3087.7,3086.4,0.3704]
[1763476794298,0.309,3087.7,3086.5,0.405504]
[1763476794668,0.309,3087.7,3086.6,0.3694]
[1763476794868,0.309,3087.7,3086.4,0.001]
[1763476795067,0.309,3087.7,3086.4,0.3704]
[1763476795473,0.309,3087.7,3086.4,0.001]
[1763476796163,0.309,3087.7,3086.4,0.3704]
[1763476796573,0.309,3087.7,3086.4,0.4028002]
[1763476796800,0.309,3087.7,3086.4,0.3704]
[1763476797177,0.309,3087.7,3086.6,0.405504]
[1763476797565,0.309,3087.7,3086.8,0.405504]
[1763476797887,0.308,3087.6,3086.9,0.6669774]
[1763476798101,0.308,3087.6,3086.9,0.206157]
[1763476798277,0.308,3087.6,3086.4,0.001]
[1763476798464,0.308,3087.6,3086.5,0.90699264]
[1763476798667,0.308,3087.6,3086.5,1.27639264]
[1763476798868,0.308,3087.6,3086.5,0.3694]
[1763476799069,0.308,3087.6,3086.5,0.90699264]
[1763476799280,0.308,3087.6,3086.6,1.91235664]
[1763476799483,0.308,3087.6,3086.7,0.67172356]
[1763476799684,0.1892,3089.2,3086.7,0.67172356]
[1763476799685,0.49,3089.1,3086.8,0.82583488]
[1763476799869,0.49,3089.1,3087.0,0.405504]
[1763476799870,1.359,3089.0,3087.0,0.405504]
[1763476800080,1.359,3089.0,3087.1,0.67172356]
[1763476800287,0.49,3088.9,3087.2,0.67172356]
[1763476800477,0.49,3088.9,3087.3,0.70724564]
[1763476800678,1.36,3088.8,3087.3,0.94403488]
[1763476800883,1.36,3088.8,3087.4,0.67485488]
[1763476801111,0.49,3088.7,3087.5,0.67485488]
[1763476801328,0.49,3088.7,3086.9,0.82583488]
[1763476801329,0.405504,3088.6,3086.9,0.82583488]
[1763476801546,0.49,3088.7,3087.0,0.67757054]
[1763476801737,0.49,3088.7,3087.7,0.82583488]
[1763476801901,0.49,3089.0,3087.9,0.82583488]
[1763476802104,0.308,3088.9,3088.0,0.82583488]
[1763476802301,6.98263236,3090.5,3088.7,0.82583488]
[1763476802302,0.308,3088.8,3088.7,0.82583488]
[1763476802489,0.49,3089.8,3088.7,0.67757054]
[1763476802685,0.6792,3091.0,3089.5,0.82583488]
[1763476802889,0.308,3090.9,3089.6,0.67757054]
[1763476803114,0.798,3090.9,3089.7,0.67757054]
[1763476803335,0.798,3090.9,3089.4,0.32583488]
[1763476803336,6.79343236,3090.7,3089.4,0.32583488]
[1763476803540,0.90699264,3090.0,3088.3,1.11375759]
[1763476803703,0.405504,3089.9,3088.0,1.11375759]
[1763476803909,0.405504,3089.9,3087.7,1.67063639]
[1763476803910,0.405504,3089.7,3087.7,1.11375759]
[1763476804290,0.405504,3089.5,3087.9,1.11375759]
[1763476804706,0.405504,3089.3,3087.8,1.11375759]
[1763476804908,0.405504,3088.3,3086.8,1.11375759]
[1763476805244,0.1892,3087.7,3086.6,1.11375759]
[1763476805388,1.31249664,3088.3,3086.4,1.67163639]
[1763476805389,1.542,3088.3,3087.3,1.11375759]
[1763476805589,0.308,3088.2,3087.9,1.11375759]
[1763476805826,0.308,3088.2,3087.8,1.11375759]
[1763476806123,1.3470014,3091.0,3087.8,1.11375759]
[1763476806124,0.308,3088.1,3087.8,0.2784394]
[1763476806329,0.308,3088.1,3086.7,0.4963]
[1763476806330,0.308,3088.1,3087.9,1.70490504]
[1763476806527,0.4822,3088.0,3087.7,1.13677704]
[1763476806734,0.4822,3088.0,3087.4,1.13677704]
[1763476807191,0.405504,3087.9,3086.5,1.13677704]
[1763476807391,0.405504,3087.4,3086.4,0.001]
[1763476807647,0.405504,3087.3,3086.0,0.001]
[1763476807792,0.887704,3087.3,3086.0,0.001]
[1763476807991,1.36,3087.2,3086.1,1.13677704]
[1763476808187,1.8422,3087.2,3086.1,1.13677704]
[1763476808435,0.4822,3087.1,3086.1,1.13677704]
[1763476808589,0.405504,3087.0,3086.1,1.13677704]
[1763476808822,1.36,3087.2,3086.3,1.13677704]
[1763476809023,1.36,3087.2,3087.1,1.70490504]
[1763476809371,1.36,3087.2,3087.0,2.25234341]
[1763476809577,1.052,3089.8,3087.2,0.405504]
[1763476809719,1.5342,3089.8,3088.9,1.13569948]
[1763476809920,1.052,3089.8,3089.6,1.13569948]
[1763476810127,0.4822,3091.2,3089.6,1.13569948]
[1763476810128,0.4822,3091.2,3089.6,2.8392487]
[1763476810366,0.1805,3091.1,3090.4,1.13363901]
[1763476810578,1.052,3091.4,3090.8,1.13363901]
[1763476810764,0.4822,3091.1,3090.4,1.13363901]
[1763476810946,0.4822,3091.1,3089.8,1.13363901]
[1763476811134,0.4822,3091.1,3090.2,1.13363901]
[1763476811494,0.6817,3091.9,3091.0,1.13363901]
[1763476811639,0.307,3091.8,3091.6,1.70063749]
[1763476811838,0.307,3091.8,3091.4,0.90699264]
[1763476812091,0.307,3091.8,3091.4,2.26580692]
[1763476812374,0.307,3091.8,3089.0,0.1491]
[1763476812375,0.4822,3091.7,3090.4,1.12748806]
[1763476812677,0.307,3091.8,3090.7,1.12748806]
[1763476813034,0.307,3091.8,3090.4,1.9731041]
[1763476813035,0.307,3091.8,3090.5,1.12748806]
[1763476813237,0.4822,3091.7,3090.2,1.12748806]
[1763476813463,0.4822,3091.7,3089.6,1.12748806]
[1763476813675,0.405504,3091.6,3089.6,1.12748806]
[1763476813846,0.405504,3091.6,3088.9,2.54973179]
[1763476813847,1.31249664,3091.3,3088.9,1.12748806]
[1763476814192,1.31249664,3090.7,3088.3,1.12748806]
[1763476814335,1.31249664,3090.0,3087.9,1.12748806]
[1763476814535,1.31249664,3090.0,3087.2,0.4827]
[1763476814536,0.405504,3089.8,3087.8,1.12748806]
[1763476814737,0.405504,3089.6,3087.3,1.12748806]
[1763476814979,0.405504,3089.4,3087.4,1.12748806]
[1763476815337,0.307,3089.5,3087.5,1.12748806]
[1763476815338,0.405504,3089.2,3087.5,1.12748806]
[1763476815538,0.405504,3089.3,3087.9,1.12748806]
[1763476815886,0.307,3089.5,3088.1,1.12748806]
[1763476816051,0.1805,3092.2,3088.7,1.12748806]
[1763476816052,0.307,3089.4,3088.7,1.12748806]
[1763476816375,6.79343236,3091.3,3088.9,1.12748806]
[1763476816582,1.8402,3091.2,3089.2,1.12748806]
[1763476816764,0.307,3091.1,3089.2,1.12748806]
[1763476816968,0.7892,3091.1,3089.3,1.12748806]
[1763476817282,0.7892,3091.1,3089.1,0.90699264]
[1763476817283,0.7892,3091.1,3089.6,1.12748806]
[1763476817435,0.7892,3091.1,3089.6,1.50005934]
[1763476817633,0.7892,3091.1,3089.4,1.12748806]
[1763476817634,0.4822,3091.0,3089.4,1.12748806]
[1763476817833,0.4822,3091.0,3089.2,1.12748806]
[1763476818036,0.4822,3091.0,3089.1,1.12748806]
[1763476818037,0.405504,3090.9,3089.1,1.12748806]
[1763476818438,7.19893636,3090.7,3088.4,1.12748806]
[1763476818639,0.405504,3089.1,3087.4,1.45763008]
[1763476818879,0.1805,3089.2,3087.4,1.45763008]
[1763476818880,0.307,3089.0,3087.4,0.31488622]
[1763476819182,0.4822,3090.0,3088.2,1.12748806]
[1763476819402,0.307,3089.9,3088.1,1.12748806]
[1763476819535,0.405504,3089.8,3088.0,1.12748806]
[1763476819735,0.405504,3089.6,3087.7,1.12748806]
[1763476820039,0.4822,3089.7,3087.8,1.12748806]
[1763476820250,1.051,3089.7,3088.4,1.12748806]
[1763476820453,0.307,3089.6,3088.8,1.12748806]
[1763476820702,0.307,3089.6,3089.2,1.12748806]
[1763476820856,0.307,3089.6,3088.3,0.891004]
[1763476820857,0.4766,3091.7,3089.7,0.405504]
[1763476821043,1.051,3091.8,3090.4,1.12568429]
[1763476821244,0.307,3091.7,3090.8,1.12568429]
[1763476821476,0.307,3091.7,3090.7,0.405504]
[1763476821477,0.307,3091.7,3091.5,1.12568429]
[1763476821698,1.051,3093.7,3091.6,0.405504]
[1763476821850,1.051,3093.7,3092.6,6.46705036]
[1763476822185,1.051,3093.7,3093.0,1.12195329]
[1763476822186,0.307,3093.6,3093.0,1.12195329]
[1763476822484,0.307,3093.6,3093.5,0.405504]
[1763476822644,0.002,3095.1,3093.5,2.01295729]
[1763476822979,0.002,3095.1,3093.9,0.405504]
[1763476823179,0.4786,3095.1,3093.0,0.90699264]
[1763476823389,0.4786,3095.1,3092.8,0.891004]
[1763476823539,0.4786,3095.1,3092.8,0.4855]
[1763476823742,0.4786,3095.1,3092.2,0.4855]
[1763476823960,0.405504,3094.9,3092.2,0.4855]
[1763476824161,0.4786,3095.1,3092.3,1.31249664]
[1763476824401,1.8336,3095.0,3092.3,0.90699264]
[1763476824570,1.8336,3095.0,3092.1,1.11526292]
[1763476824571,0.405504,3094.9,3092.1,3.71949832]
[1763476824892,1.31249664,3094.3,3091.5,0.28142107]
[1763476825103,1.31249664,3094.3,3091.6,0.46314403]
[1763476825393,0.405504,3094.1,3091.3,0.4855]
[1763476825557,1.31249664,3093.7,3090.7,6.4710118]
[1763476825758,0.90699264,3093.7,3090.8,0.4855]
[1763476825955,0.6626,3093.6,3091.1,1.11526292]
[1763476826258,0.6626,3093.9,3091.4,2.02225556]
[1763476826557,0.405504,3093.8,3090.6,1.11526292]
[1763476826806,0.405504,3093.8,3090.5,0.4855]
[1763476826807,0.882104,3093.8,3090.5,0.4855]
[1763476827015,0.4766,3093.8,3090.5,2.50775556]
[1763476827306,0.405504,3093.8,3090.7,0.90699264]
[1763476827475,0.405504,3093.8,3090.8,0.4855]
[1763476828088,0.405504,3093.8,3090.9,0.90699264]
[1763476828404,1.31249664,3093.6,3091.0,0.46278959]
[1763476828569,1.31249664,3093.6,3090.2,0.4855]
[1763476828570,1.31249664,3093.0,3090.2,0.4855]
[1763476828911,0.405504,3092.8,3089.8,1.11526292]
[1763476829109,0.4766,3092.7,3089.6,4.53219913]
[1763476829261,0.90699264,3092.4,3089.7,1.11526292]
[1763476829617,1.31249664,3091.7,3088.7,0.4855]
[1763476829905,5.75359794,3091.8,3087.4,1.60076292]
[1763476829906,1.31249664,3090.5,3087.4,1.60076292]
[1763476830134,1.31249664,3090.5,3087.8,0.4855]
[1763476830263,1.8336,3090.4,3087.9,1.11526292]
[1763476830462,1.8336,3090.4,3088.0,1.11526292]
[1763476830463,0.4766,3090.4,3088.0,1.11526292]
[1763476830677,0.186,3091.6,3089.1,1.11526292]
[1763476830678,0.306,3090.3,3089.1,1.11526292]
[1763476830899,0.306,3090.3,3088.7,1.11526292]
[1763476831214,0.306,3090.3,3088.7,0.27981929]
[1763476831359,0.4766,3090.2,3088.0,1.11526292]
[1763476831560,0.4766,3090.2,3087.6,0.4855]
[1763476831901,0.4766,3090.2,3088.0,0.90699264]
[1763476832404,0.4766,3090.2,3087.2,4.35444405]
[1763476832405,1.31249664,3089.9,3087.2,4.35444405]
[1763476832704,0.4766,3089.9,3087.6,1.11526292]
[1763476832918,0.405504,3089.7,3087.7,0.20222556]
[1763476833063,0.405504,3089.7,3087.0,0.6687]
[1763476833264,0.405504,3089.5,3087.1,1.39249264]
[1763476833465,0.405504,3089.5,3087.1,0.4855]
[1763476833702,0.405504,3089.3,3087.1,0.4855]
[1763476834007,0.405504,3089.1,3086.5,1.11526292]
[1763476834211,0.405504,3089.1,3086.5,3.72541576]
[1763476834359,0.405504,3088.9,3086.6,0.37264158]
[1763476834568,0.405504,3088.9,3086.5,0.4855]
[1763476834761,0.405504,3088.9,3086.4,0.001]
[1763476834762,0.405504,3088.7,3086.4,0.001]
[1763476835176,0.405504,3088.5,3086.4,0.001]
[1763476835518,0.4766,3088.6,3086.5,0.4855]
[1763476835883,0.4766,3088.6,3086.6,3.23981079]
[1763476836088,0.491,3089.2,3086.8,0.405504]
[1763476836283,0.4796,3089.1,3086.7,1.6035088]
[1763476836487,1.31249664,3089.0,3086.7,0.69651616]
[1763476836686,1.31249664,3089.0,3086.4,0.001]
[1763476836972,0.4796,3088.9,3086.5,1.38099264]
[1763476837201,1.356,3088.8,3086.6,0.474]
[1763476837721,0.4796,3088.7,3086.6,0.474]
[1763476837903,0.4796,3088.7,3086.6,3.71377184]
[1763476837904,0.405504,3088.6,3086.6,3.71377184]
[1763476838086,0.405504,3088.6,3086.7,0.46207645]
[1763476838272,6.15910194,3088.4,3086.4,0.001]
[1763476838472,1.31249664,3087.7,3086.4,0.001]
[1763476838782,0.596404,3086.5,3086.4,0.001]
[1763476838998,0.405504,3086.4,3084.0,0.6582]
[1763476839179,0.4796,3086.4,3084.3,0.474]
[1763476839379,0.405504,3086.3,3084.3,0.474]
[1763476839620,0.405504,3086.3,3084.0,0.001]
[1763476839824,0.4796,3086.3,3084.1,0.474]
[1763476840232,0.4796,3086.3,3084.2,0.90699264]
[1763476840398,0.4796,3086.3,3084.3,0.9363429]
[1763476840598,5.75359794,3087.0,3084.0,0.90799264]
[1763476840599,0.6705,3087.1,3084.4,0.474]
[1763476840812,1.051,3087.3,3085.6,0.405504]
[1763476841016,1.051,3087.3,3085.8,0.405504]
[1763476841017,0.305,3087.2,3085.8,0.405504]
[1763476841222,0.305,3087.2,3086.2,0.90699264]
[1763476841532,0.305,3087.2,3086.3,0.66605906]
[1763476841735,0.305,3087.2,3085.9,0.405504]
[1763476842031,0.305,3087.2,3086.2,0.405504]
[1763476842234,0.305,3087.2,3086.1,0.405504]
[1763476842545,0.305,3087.2,3086.2,0.474]
[1763476842894,0.305,3087.2,3086.3,0.405504]
[1763476843117,0.186,3089.2,3086.3,0.405504]
[1763476843299,0.305,3089.1,3086.9,2.42775956]
[1763476843499,0.305,3089.0,3087.1,0.405504]
[1763476843721,0.305,3089.0,3087.3,1.52076692]
[1763476843928,0.305,3089.0,3087.6,10.12178847]
[1763476844190,0.305,3089.0,3088.2,1.31249664]
[1763476844432,0.305,3089.0,3088.4,0.405504]
[1763476844641,0.305,3089.0,3087.5,0.1834]
[1763476844933,0.305,3089.0,3087.4,1.11526292]
[1763476844934,0.4796,3088.9,3086.9,0.474]
[1763476845901,0.4796,3088.9,3087.0,0.90699264]
[1763476845902,0.305,3088.8,3087.0,0.90699264]
[1763476846133,0.305,3088.8,3087.1,0.46204886]
[1763476846304,0.7846,3088.8,3086.9,0.474]
[1763476846534,0.7846,3088.8,3087.0,0.90699264]
[1763476846715,0.305,3088.8,3087.0,0.90699264]
[1763476846921,0.305,3088.8,3087.1,0.474]
[1763476847331,0.305,3088.8,3087.6,0.90699264]
[1763476847550,0.305,3088.8,3087.7,0.66605906]
[1763476847722,1.051,3088.9,3088.0,1.11526292]
[1763476847920,1.5306,3088.9,3086.9,0.474]
[1763476848150,1.051,3088.9,3086.9,0.474]
[1763476848462,1.051,3088.9,3087.0,0.405504]
[1763476848776,0.4796,3089.9,3087.4,1.31249664]
[1763476849071,0.305,3089.8,3087.6,0.405504]
[1763476849224,0.305,3089.8,3087.5,1.18060946]
[1763476849424,0.305,3089.8,3087.7,0.405504]
[1763476849624,0.305,3089.8,3088.7,0.405504]
[1763476850124,0.305,3089.8,3089.7,0.588704]
[1763476850336,1.051,3089.9,3089.7,0.1832]
[1763476850534,0.0012,3090.2,3089.9,0.405504]
[1763476850846,0.0012,3090.2,3089.8,0.474]
[1763476851671,0.305,3090.1,3089.9,0.405504]
[1763476852276,0.305,3090.1,3090.0,0.474]
[1763476852473,0.002,3090.6,3090.1,0.405504]
[1763476852767,1.051,3091.7,3090.1,0.405504]
[1763476852768,1.051,3091.7,3090.1,2.42775956]
[1763476852974,1.051,3091.7,3090.3,0.405504]
[1763476853135,1.051,3091.7,3091.6,0.588904]
[1763476853341,0.4796,3093.8,3091.6,0.588904]
[1763476853342,0.4796,3093.8,3091.7,0.405504]
[1763476853644,0.4796,3093.8,3091.4,0.405504]
[1763476853845,0.4796,3093.8,3091.4,0.879504]
[1763476853846,0.304,3093.7,3091.4,0.879504]
[1763476854048,0.304,3093.7,3092.1,1.31249664]
[1763476854251,0.304,3093.7,3092.3,0.405504]
[1763476854662,0.304,3093.7,3092.5,0.405504]
[1763476855161,0.304,3093.7,3092.2,2.91186205]
[1763476855162,0.304,3093.7,3092.6,0.474]
[1763476855348,0.304,3093.7,3092.3,0.474]
[1763476856083,0.304,3093.7,3091.9,0.405504]
[1763476856249,0.304,3093.7,3091.8,0.474]
[1763476856457,0.304,3093.7,3091.9,0.84484559]
[1763476856644,0.304,3093.7,3091.9,0.474]
[1763476856849,0.7836,3093.7,3091.3,1.11526292]
[1763476857085,0.7836,3093.7,3091.1,3.70906229]
[1763476857376,0.405504,3093.5,3091.1,0.474]
[1763476857731,0.405504,3093.3,3091.0,0.1834]
[1763476857938,0.405504,3093.3,3090.5,0.474]
[1763476858174,0.405504,3093.1,3090.5,0.474]
[1763476858546,0.90699264,3094.5,3090.6,0.90699264]
[1763476858748,0.7826,3094.0,3090.9,1.11526292]
[1763476858946,0.303,3094.0,3092.1,1.31249664]
[1763476859245,0.303,3094.0,3092.7,1.31249664]
[1763476859682,0.303,3094.0,3092.9,0.405504]
[1763476860183,0.303,3094.0,3092.3,0.405504]
[1763476860336,0.303,3094.0,3093.0,0.474]
[1763476860536,0.7826,3094.0,3091.8,0.474]
[1763476860844,0.4796,3093.9,3091.8,0.474]
[1763476861438,1.1578014,3097.9,3091.8,0.474]
[1763476861439,1.051,3095.0,3092.1,5.75359794]
[1763476861647,0.303,3094.8,3093.3,5.75359794]
[1763476861839,0.303,3094.8,3093.4,1.45486379]
[1763476862058,0.303,3094.8,3093.7,0.405504]
[1763476862234,0.303,3094.8,3093.9,1.31249664]
[1763476862439,0.303,3094.8,3094.7,0.1834]
[1763476862680,0.303,3094.8,3094.0,0.6574]
[1763476862885,0.303,3094.8,3094.1,0.67346956]
[1763476863391,0.002,3095.6,3094.8,0.405504]
[1763476863546,0.303,3095.4,3094.8,1.23250006]
[1763476863737,0.303,3095.4,3094.9,0.474]
[1763476863963,0.303,3095.4,3095.0,0.405504]
[1763476864165,0.1909,3097.6,3095.5,0.405504]
[1763476864446,0.5,3102.2,3096.0,1.31249664]
[1763476864447,0.4796,3098.4,3096.0,1.31249664]
[1763476864665,1.05,3098.6,3096.5,5.75359794]
[1763476864868,1.05,3098.6,3096.7,0.405504]
[1763476865175,0.4796,3099.1,3096.9,0.405504]
[1763476865402,1.05,3099.5,3097.2,1.31249664]
[1763476865563,0.303,3098.9,3096.8,0.474]
[1763476865762,0.303,3098.9,3096.9,0.22079887]
[1763476865983,0.303,3098.9,3097.0,0.405504]
[1763476866213,0.303,3098.9,3097.3,0.405504]
[1763476866507,0.303,3098.9,3097.4,0.4671]
[1763476866707,0.303,3098.9,3096.9,0.22079887]
[1763476866708,0.656,3098.8,3096.9,0.22079887]
[1763476867015,1.56299264,3098.8,3095.6,0.4671]
[1763476867301,5.75359794,3097.7,3094.9,0.4671]
[1763476867504,0.90699264,3097.0,3093.6,0.4671]
[1763476867860,0.4924,3097.6,3093.4,0.1888]
[1763476867861,1.31249664,3096.4,3093.4,0.1888]
[1763476868064,0.872104,3096.9,3093.4,3.42142478]